[Event "*** SCC Grand Prix: Titled Tuesday Blitz"]
[Site "Chess.com"]
[Date "2020.10.06"]
[Round "9"]
[White "PIwan"]
[Black "GustavoJuarezF"]
[Result "1-0"]
[WhiteElo "2523"]
[BlackElo "2037"]
[TimeControl "180+1"]
[EndTime "11:45:50 PDT"]
[Termination "PIwan won on time"]

1. c4 {[%clk 0:03:00.9]} 1... e5 {[%clk 0:02:52.6]} 2. Nc3 {[%clk 0:03:01.3]}
2... Nc6 {[%clk 0:02:48.6]} 3. Nf3 {[%clk 0:03:01.7]} 3... g6 {[%clk 0:02:46.4]}
4. d4 {[%clk 0:03:00.9]} 4... exd4 {[%clk 0:02:44.4]} 5. Nxd4 {[%clk 0:03:01.8]}
5... Bg7 {[%clk 0:02:43.9]} 6. Nxc6 {[%clk 0:03:02]} 6... bxc6 {[%clk
0:02:40.9]} 7. g3 {[%clk 0:03:02]} 7... d6 {[%clk 0:02:28.7]} 8. Bg2 {[%clk
0:03:02.1]} 8... Bd7 {[%clk 0:02:28.7]} 9. O-O {[%clk 0:03:02.6]} 9... Ne7
{[%clk 0:02:24.4]} 10. Qc2 {[%clk 0:03:02.6]} 10... O-O {[%clk 0:02:22.6]} 11.
b3 {[%clk 0:03:03.1]} 11... Rb8 {[%clk 0:02:16.7]} 12. Bb2 {[%clk 0:03:03.5]}
12... c5 {[%clk 0:02:13.1]} 13. Rad1 {[%clk 0:02:57.8]} 13... Bc6 {[%clk
0:02:10.7]} 14. e4 {[%clk 0:02:56.6]} 14... Qc8 {[%clk 0:02:04.5]} 15. f4 {[%clk
0:02:47.9]} 15... f5 {[%clk 0:01:57.4]} 16. Rfe1 {[%clk 0:02:32]} 16... fxe4
{[%clk 0:01:39.2]} 17. Nxe4 {[%clk 0:02:26.2]} 17... Bxe4 {[%clk 0:01:29.2]} 18.
Bxe4 {[%clk 0:02:21]} 18... Nf5 {[%clk 0:01:27.7]} 19. Bd5+ {[%clk 0:02:02.2]}
19... Kh8 {[%clk 0:01:26.2]} 20. Be6 {[%clk 0:02:01.8]} 20... Qd8 {[%clk
0:01:13.7]} 21. Bxf5 {[%clk 0:01:54.8]} 21... Rxf5 {[%clk 0:01:09.9]} 22. Re6
{[%clk 0:01:50.2]} 22... Rf7 {[%clk 0:00:47]} 23. Rde1 {[%clk 0:01:47.1]} 23...
Qf8 {[%clk 0:00:45.9]} 24. R1e4 {[%clk 0:01:26.5]} 24... Bxb2 {[%clk 0:00:17.9]}
25. Qxb2+ {[%clk 0:01:27.4]} 25... Qg7 {[%clk 0:00:15.5]} 26. Re8+ {[%clk
0:01:22.6]} 26... Rf8 {[%clk 0:00:15.1]} 27. Qxg7+ {[%clk 0:01:15.6]} 27... Kxg7
{[%clk 0:00:13.8]} 28. R4e7+ {[%clk 0:01:16.5]} 28... Kf6 {[%clk 0:00:10.8]} 29.
Rxf8+ {[%clk 0:01:12]} 29... Rxf8 {[%clk 0:00:08.6]} 30. Rxc7 {[%clk 0:01:12.4]}
30... h5 {[%clk 0:00:05.2]} 31. Rxa7 {[%clk 0:01:10.6]} 31... Re8 {[%clk
0:00:05.3]} 32. Kf2 {[%clk 0:01:10.4]} 32... Kf5 {[%clk 0:00:04.2]} 33. Kf3
{[%clk 0:00:41.4]} 1-0

[Event "*** SCC Grand Prix: Titled Tuesday Blitz"]
[Site "Chess.com"]
[Date "2020.10.06"]
[Round "9"]
[White "kngopal"]
[Black "ThePatrick27"]
[Result "1-0"]
[WhiteElo "2275"]
[BlackElo "2542"]
[TimeControl "180+1"]
[EndTime "11:45:52 PDT"]
[Termination "kngopal won by resignation"]

1. e4 {[%clk 0:03:00.9]} 1... e6 {[%clk 0:02:59.7]} 2. d4 {[%clk 0:03:00.1]}
2... d5 {[%clk 0:02:59.8]} 3. e5 {[%clk 0:02:58.1]} 3... c5 {[%clk 0:02:59.8]}
4. c3 {[%clk 0:02:58.2]} 4... Nc6 {[%clk 0:03:00]} 5. Nf3 {[%clk 0:02:58.4]}
5... Bd7 {[%clk 0:03:00.3]} 6. Bd3 {[%clk 0:02:57.5]} 6... Rc8 {[%clk
0:02:59.6]} 7. a3 {[%clk 0:02:53.4]} 7... cxd4 {[%clk 0:02:54.3]} 8. cxd4 {[%clk
0:02:52.7]} 8... Qb6 {[%clk 0:02:54.5]} 9. O-O {[%clk 0:02:50.7]} 9... Nge7
{[%clk 0:02:50.4]} 10. Nc3 {[%clk 0:02:49.3]} 10... Ng6 {[%clk 0:02:43.9]} 11.
Be3 {[%clk 0:02:40.1]} 11... Be7 {[%clk 0:02:26.3]} 12. Qd2 {[%clk 0:02:31.4]}
12... Na5 {[%clk 0:02:22.4]} 13. g3 {[%clk 0:02:19.3]} 13... Nb3 {[%clk
0:02:21]} 14. Qe2 {[%clk 0:02:15.1]} 14... Nxa1 {[%clk 0:02:21]} 15. Rxa1 {[%clk
0:02:14.6]} 15... O-O {[%clk 0:02:17.5]} 16. h4 {[%clk 0:02:14.7]} 16... Rfd8
{[%clk 0:02:03.3]} 17. h5 {[%clk 0:02:11.5]} 17... Nf8 {[%clk 0:01:58.5]} 18.
Rd1 {[%clk 0:02:08.8]} 18... h6 {[%clk 0:01:41.7]} 19. g4 {[%clk 0:01:58.6]}
19... Bxa3 {[%clk 0:01:21.1]} 20. Rd2 {[%clk 0:01:19.8]} 20... Bb4 {[%clk
0:00:52.5]} 21. g5 {[%clk 0:01:16.2]} 21... hxg5 {[%clk 0:00:38.2]} 22. Nxg5
{[%clk 0:01:14.5]} 22... Bxc3 {[%clk 0:00:30.7]} 23. bxc3 {[%clk 0:01:09.8]}
23... Rxc3 {[%clk 0:00:31.6]} 24. h6 {[%clk 0:00:57.6]} 24... Rxd3 {[%clk
0:00:23.7]} 25. Qxd3 {[%clk 0:00:48.5]} 25... Bb5 {[%clk 0:00:23.1]} 26. Qa3
{[%clk 0:00:38.4]} 26... g6 {[%clk 0:00:20.4]} 27. Qe7 {[%clk 0:00:35.6]} 27...
Rd7 {[%clk 0:00:17.8]} 28. Qf6 {[%clk 0:00:25.9]} 1-0

[Event "*** SCC Grand Prix: Titled Tuesday Blitz"]
[Site "Chess.com"]
[Date "2020.10.06"]
[Round "9"]
[White "Andreikka"]
[Black "GiantThresher"]
[Result "0-1"]
[WhiteElo "2889"]
[BlackElo "2820"]
[TimeControl "180+1"]
[EndTime "11:45:54 PDT"]
[Termination "GiantThresher won on time"]

1. c4 {[%clk 0:03:00.9]} 1... e6 {[%clk 0:02:59.4]} 2. Nc3 {[%clk 0:03:00.3]}
2... d5 {[%clk 0:02:59.6]} 3. d4 {[%clk 0:02:59]} 3... c5 {[%clk 0:02:59.8]} 4.
cxd5 {[%clk 0:02:58.8]} 4... exd5 {[%clk 0:03:00.7]} 5. dxc5 {[%clk 0:02:59.4]}
5... Nf6 {[%clk 0:02:52.8]} 6. Bg5 {[%clk 0:02:54.5]} 6... Bxc5 {[%clk
0:02:51.7]} 7. e3 {[%clk 0:02:49.3]} 7... Nc6 {[%clk 0:02:51.7]} 8. Nf3 {[%clk
0:02:47.9]} 8... O-O {[%clk 0:02:50.8]} 9. Be2 {[%clk 0:02:38.2]} 9... d4 {[%clk
0:02:50.6]} 10. exd4 {[%clk 0:02:39]} 10... Nxd4 {[%clk 0:02:48.5]} 11. Nxd4
{[%clk 0:02:39.9]} 11... Bxd4 {[%clk 0:02:45.2]} 12. O-O {[%clk 0:02:39.2]}
12... h6 {[%clk 0:02:41.2]} 13. Bh4 {[%clk 0:02:36]} 13... Be6 {[%clk
0:02:27.2]} 14. Bf3 {[%clk 0:02:26.6]} 14... Rc8 {[%clk 0:02:17.3]} 15. Re1
{[%clk 0:01:39.5]} 15... b6 {[%clk 0:02:06.1]} 16. Qc2 {[%clk 0:01:01]} 16...
Qc7 {[%clk 0:01:29.3]} 17. Rec1 {[%clk 0:00:55]} 17... Qe5 {[%clk 0:01:20.9]}
18. Qa4 {[%clk 0:00:49.4]} 18... b5 {[%clk 0:00:58.7]} 19. Qa5 {[%clk
0:00:35.5]} 19... b4 {[%clk 0:00:30.9]} 20. Qxb4 {[%clk 0:00:20]} 20... Qf4
{[%clk 0:00:29.5]} 21. Be4 {[%clk 0:00:01.2]} 21... Nxe4 {[%clk 0:00:13.5]} 0-1

[Event "*** SCC Grand Prix: Titled Tuesday Blitz"]
[Site "Chess.com"]
[Date "2020.10.06"]
[Round "9"]
[White "Balla_Tamas"]
[Black "MVM2008"]
[Result "1-0"]
[WhiteElo "2449"]
[BlackElo "2238"]
[TimeControl "180+1"]
[EndTime "11:45:55 PDT"]
[Termination "Balla_Tamas won by resignation"]

1. e4 {[%clk 0:03:00.9]} 1... c5 {[%clk 0:02:59.4]} 2. d3 {[%clk 0:02:59.8]}
2... Nc6 {[%clk 0:02:56.6]} 3. f4 {[%clk 0:02:59.4]} 3... d6 {[%clk 0:02:47.3]}
4. g3 {[%clk 0:02:59]} 4... g6 {[%clk 0:02:46]} 5. Bg2 {[%clk 0:02:59.4]} 5...
Bg7 {[%clk 0:02:46]} 6. Nf3 {[%clk 0:03:00.1]} 6... e5 {[%clk 0:02:42.2]} 7. c3
{[%clk 0:02:59.3]} 7... Nge7 {[%clk 0:02:38.8]} 8. O-O {[%clk 0:02:59.1]} 8...
O-O {[%clk 0:02:36.9]} 9. Be3 {[%clk 0:02:59.1]} 9... f5 {[%clk 0:02:28.8]} 10.
fxe5 {[%clk 0:02:56.3]} 10... fxe4 {[%clk 0:02:21.8]} 11. dxe4 {[%clk
0:02:47.6]} 11... Nxe5 {[%clk 0:02:19.7]} 12. Nxe5 {[%clk 0:02:43]} 12... Bxe5
{[%clk 0:02:19.6]} 13. Rxf8+ {[%clk 0:02:41.4]} 13... Qxf8 {[%clk 0:02:20.5]}
14. Qb3+ {[%clk 0:02:37.1]} 14... Qf7 {[%clk 0:02:12.4]} 15. Nd2 {[%clk
0:02:36.1]} 15... Qxb3 {[%clk 0:02:07.6]} 16. Nxb3 {[%clk 0:02:31.6]} 16... Nc6
{[%clk 0:02:06.8]} 17. Nd2 {[%clk 0:02:24.6]} 17... Be6 {[%clk 0:02:02.7]} 18.
Nf3 {[%clk 0:02:23.8]} 18... Rf8 {[%clk 0:01:43.6]} 19. Nxe5 {[%clk 0:02:18.8]}
19... Nxe5 {[%clk 0:01:43.4]} 20. Rd1 {[%clk 0:02:18.7]} 20... Bxa2 {[%clk
0:01:26.6]} 21. Bh6 {[%clk 0:02:10.2]} 21... Rd8 {[%clk 0:01:18.6]} 22. Ra1
{[%clk 0:02:09.8]} 22... Bc4 {[%clk 0:01:06.9]} 23. Rxa7 {[%clk 0:02:09.3]}
23... Ba6 {[%clk 0:01:05.7]} 24. Bg5 {[%clk 0:02:07.4]} 24... Re8 {[%clk
0:00:55.7]} 25. Bf4 {[%clk 0:01:58.7]} 25... Nc6 {[%clk 0:00:46.9]} 26. Rxa6
{[%clk 0:01:58.1]} 26... bxa6 {[%clk 0:00:47.8]} 27. Bxd6 {[%clk 0:01:58.1]}
27... c4 {[%clk 0:00:45.1]} 28. Bf1 {[%clk 0:01:45.3]} 28... Rxe4 {[%clk
0:00:23.2]} 29. Bg2 {[%clk 0:01:45.4]} 29... Re1+ {[%clk 0:00:23.3]} 30. Kf2
{[%clk 0:01:45.2]} 30... Rd1 {[%clk 0:00:22.3]} 31. Bf4 {[%clk 0:01:40]} 31...
Na5 {[%clk 0:00:20.6]} 32. Ke2 {[%clk 0:01:38.7]} 32... Rb1 {[%clk 0:00:20.2]}
33. Bd5+ {[%clk 0:01:37.6]} 33... Kg7 {[%clk 0:00:16.7]} 34. Be5+ {[%clk
0:01:37.6]} 34... Kh6 {[%clk 0:00:14.5]} 35. h4 {[%clk 0:01:37.1]} 35... Rxb2+
{[%clk 0:00:14.2]} 36. Ke3 {[%clk 0:01:37.1]} 36... Rb5 {[%clk 0:00:10.6]} 37.
Bf4+ {[%clk 0:01:36.5]} 37... Kg7 {[%clk 0:00:10.3]} 38. Kd4 {[%clk 0:01:36]}
38... Rb1 {[%clk 0:00:05.8]} 39. Be5+ {[%clk 0:01:35]} 39... Kf8 {[%clk
0:00:04.7]} 40. Bd6+ {[%clk 0:01:34.8]} 40... Kg7 {[%clk 0:00:04.2]} 41. Bc7
{[%clk 0:01:34.8]} 41... Nb3+ {[%clk 0:00:03.9]} 42. Kxc4 {[%clk 0:01:34.7]}
42... Nd2+ {[%clk 0:00:04.4]} 43. Kd3 {[%clk 0:01:35]} 43... Nb3 {[%clk
0:00:04.3]} 44. Kc2 {[%clk 0:01:34.7]} 44... Rg1 {[%clk 0:00:02.2]} 45. Kxb3
{[%clk 0:01:33.2]} 45... Rb1+ {[%clk 0:00:01.9]} 46. Kc2 {[%clk 0:01:32.9]}
46... Rb5 {[%clk 0:00:02.8]} 47. c4 {[%clk 0:01:32.1]} 47... Rc5 {[%clk
0:00:03.7]} 48. Be5+ {[%clk 0:01:31.6]} 48... Kh6 {[%clk 0:00:03.2]} 49. Bd4
{[%clk 0:01:31.3]} 49... Rc8 {[%clk 0:00:02.9]} 50. Kc3 {[%clk 0:01:29.4]} 50...
g5 {[%clk 0:00:02.6]} 51. Be3 {[%clk 0:01:28.3]} 51... Kh5 {[%clk 0:00:02.7]}
52. Bxg5 {[%clk 0:01:27.9]} 52... Kg4 {[%clk 0:00:03.3]} 53. Be6+ {[%clk
0:01:27.7]} 1-0

[Event "*** SCC Grand Prix: Titled Tuesday Blitz"]
[Site "Chess.com"]
[Date "2020.10.06"]
[Round "9"]
[White "TrickyFortem"]
[Black "Fins0905"]
[Result "0-1"]
[WhiteElo "2476"]
[BlackElo "2644"]
[TimeControl "180+1"]
[EndTime "11:45:57 PDT"]
[Termination "Fins0905 won by checkmate"]

1. d4 {[%clk 0:03:00.9]} 1... d5 {[%clk 0:02:59.6]} 2. c4 {[%clk 0:03:01.2]}
2... c6 {[%clk 0:02:59.5]} 3. Nf3 {[%clk 0:03:01.8]} 3... Nf6 {[%clk 0:02:59.3]}
4. Nc3 {[%clk 0:03:02.4]} 4... dxc4 {[%clk 0:02:59]} 5. a4 {[%clk 0:03:02]} 5...
Bf5 {[%clk 0:02:58.5]} 6. Ne5 {[%clk 0:03:02.4]} 6... Nbd7 {[%clk 0:02:51.3]} 7.
Nxc4 {[%clk 0:03:02.5]} 7... Nb6 {[%clk 0:02:51.6]} 8. Ne5 {[%clk 0:03:03]} 8...
a5 {[%clk 0:02:51.8]} 9. h4 {[%clk 0:03:02.6]} 9... e6 {[%clk 0:02:32.8]} 10. f3
{[%clk 0:02:55.6]} 10... h6 {[%clk 0:02:20.4]} 11. e4 {[%clk 0:02:54.6]} 11...
Bh7 {[%clk 0:02:19.9]} 12. Be3 {[%clk 0:02:53.1]} 12... Nfd7 {[%clk 0:02:15.7]}
13. Nxd7 {[%clk 0:02:38.6]} 13... Nxd7 {[%clk 0:02:14.4]} 14. Bc4 {[%clk
0:02:35]} 14... Be7 {[%clk 0:02:11.7]} 15. h5 {[%clk 0:02:32.4]} 15... Bh4+
{[%clk 0:02:00.1]} 16. Ke2 {[%clk 0:02:32]} 16... O-O {[%clk 0:01:55.1]} 17. Qd2
{[%clk 0:02:31.2]} 17... Be7 {[%clk 0:01:31.9]} 18. g4 {[%clk 0:02:30.8]} 18...
Kh8 {[%clk 0:01:22]} 19. Rag1 {[%clk 0:02:28.9]} 19... e5 {[%clk 0:01:02.7]} 20.
d5 {[%clk 0:02:23]} 20... Bc5 {[%clk 0:00:56.5]} 21. g5 {[%clk 0:02:21.7]} 21...
hxg5 {[%clk 0:00:49.9]} 22. Bxg5 {[%clk 0:02:20.8]} 22... f6 {[%clk 0:00:40.2]}
23. Be3 {[%clk 0:02:20.7]} 23... f5 {[%clk 0:00:38.7]} 24. Bxc5 {[%clk
0:01:26.8]} 24... Nxc5 {[%clk 0:00:37.4]} 25. Qe3 {[%clk 0:01:25.6]} 25... Qb6
{[%clk 0:00:33.2]} 26. b3 {[%clk 0:00:53.9]} 26... Qb4 {[%clk 0:00:31.8]} 27.
Rxg7 {[%clk 0:00:51]} 27... Kxg7 {[%clk 0:00:24.1]} 28. Qg5+ {[%clk 0:00:42.5]}
28... Kh8 {[%clk 0:00:22.5]} 29. Rg1 {[%clk 0:00:30.5]} 29... Rf7 {[%clk
0:00:20.7]} 30. Nd1 {[%clk 0:00:26.6]} 30... Rg8 {[%clk 0:00:16.3]} 31. d6
{[%clk 0:00:23.7]} 31... Rxg5 {[%clk 0:00:13.6]} 32. Rxg5 {[%clk 0:00:24.6]}
32... Rf8 {[%clk 0:00:13.7]} 33. Ne3 {[%clk 0:00:23]} 33... fxe4 {[%clk
0:00:13.3]} 34. fxe4 {[%clk 0:00:22.4]} 34... Nxe4 {[%clk 0:00:13.5]} 35. Rxe5
{[%clk 0:00:22.7]} 35... Qd2# {[%clk 0:00:13.4]} 0-1

[Event "*** SCC Grand Prix: Titled Tuesday Blitz"]
[Site "Chess.com"]
[Date "2020.10.06"]
[Round "9"]
[White "Morshynska"]
[Black "Orest_Vovk"]
[Result "0-1"]
[WhiteElo "2233"]
[BlackElo "2449"]
[TimeControl "180+1"]
[EndTime "11:46:02 PDT"]
[Termination "Orest_Vovk won on time"]

1. Nf3 {[%clk 0:03:00.9]} 1... d5 {[%clk 0:02:58.6]} 2. g3 {[%clk 0:03:00.8]}
2... Nf6 {[%clk 0:02:58.5]} 3. Bg2 {[%clk 0:03:00.7]} 3... c6 {[%clk 0:02:58.6]}
4. O-O {[%clk 0:02:58.6]} 4... a6 {[%clk 0:02:58.6]} 5. a4 {[%clk 0:02:56.3]}
5... g6 {[%clk 0:02:55.3]} 6. b3 {[%clk 0:02:47.6]} 6... Bg7 {[%clk 0:02:55]} 7.
Bb2 {[%clk 0:02:48]} 7... O-O {[%clk 0:02:55.9]} 8. a5 {[%clk 0:02:47.2]} 8...
Bg4 {[%clk 0:02:47.7]} 9. h3 {[%clk 0:02:46.1]} 9... Bxf3 {[%clk 0:02:47.2]} 10.
exf3 {[%clk 0:02:34.6]} 10... Ne8 {[%clk 0:02:46.5]} 11. Bxg7 {[%clk 0:02:12.5]}
11... Kxg7 {[%clk 0:02:46.1]} 12. f4 {[%clk 0:02:11.4]} 12... Nd6 {[%clk
0:02:45.1]} 13. Nc3 {[%clk 0:02:03.5]} 13... Nd7 {[%clk 0:02:44.9]} 14. Re1
{[%clk 0:01:57.3]} 14... Re8 {[%clk 0:02:38.9]} 15. Qc1 {[%clk 0:01:45]} 15...
e5 {[%clk 0:02:35.9]} 16. fxe5 {[%clk 0:01:42.5]} 16... Rxe5 {[%clk 0:02:36.8]}
17. Rxe5 {[%clk 0:01:36.8]} 17... Nxe5 {[%clk 0:02:36.8]} 18. Qb2 {[%clk
0:01:37.7]} 18... Qf6 {[%clk 0:02:35.5]} 19. Re1 {[%clk 0:00:48.7]} 19... Re8
{[%clk 0:02:32.1]} 20. Kf1 {[%clk 0:00:42.7]} 20... Nf5 {[%clk 0:02:22.2]} 21.
Ne2 {[%clk 0:00:20.9]} 21... h5 {[%clk 0:01:44.8]} 22. Qc3 {[%clk 0:00:20.5]}
22... g5 {[%clk 0:01:18.3]} 23. Nd4 {[%clk 0:00:19.6]} 23... Nd6 {[%clk
0:01:07.6]} 24. Re3 {[%clk 0:00:12.9]} 24... h4 {[%clk 0:01:00.9]} 25. g4 {[%clk
0:00:12.5]} 25... Ng6 {[%clk 0:00:57.3]} 26. Ne2 {[%clk 0:00:10.6]} 26... Qxc3
{[%clk 0:00:54.2]} 27. dxc3 {[%clk 0:00:08.4]} 27... Rxe3 {[%clk 0:00:52.4]} 28.
fxe3 {[%clk 0:00:09.3]} 28... f5 {[%clk 0:00:50.7]} 29. gxf5 {[%clk 0:00:07.9]}
29... Nxf5 {[%clk 0:00:50.7]} 30. Kf2 {[%clk 0:00:08.8]} 30... Nd6 {[%clk
0:00:48.8]} 31. Bf3 {[%clk 0:00:07.2]} 31... Kf6 {[%clk 0:00:43.3]} 32. Bg4
{[%clk 0:00:05]} 32... Ne5 {[%clk 0:00:43.2]} 33. Bh5 {[%clk 0:00:03]} 33...
Ne4+ {[%clk 0:00:41.9]} 34. Ke1 {[%clk 0:00:01.2]} 34... c5 {[%clk 0:00:35.8]}
0-1

[Event "*** SCC Grand Prix: Titled Tuesday Blitz"]
[Site "Chess.com"]
[Date "2020.10.06"]
[Round "9"]
[White "GHANDEEVAM2003"]
[Black "TigrVShlyape"]
[Result "1-0"]
[WhiteElo "2970"]
[BlackElo "2830"]
[TimeControl "180+1"]
[EndTime "11:46:03 PDT"]
[Termination "GHANDEEVAM2003 won by resignation"]

1. Nf3 {[%clk 0:03:00.9]} 1... Nf6 {[%clk 0:02:51.7]} 2. c4 {[%clk 0:03:00.5]}
2... g6 {[%clk 0:02:50.9]} 3. Nc3 {[%clk 0:02:59]} 3... Bg7 {[%clk 0:02:51.2]}
4. e4 {[%clk 0:02:59.1]} 4... d6 {[%clk 0:02:50.8]} 5. d4 {[%clk 0:02:59.6]}
5... O-O {[%clk 0:02:50.4]} 6. Be2 {[%clk 0:03:00.2]} 6... e5 {[%clk 0:02:50.3]}
7. d5 {[%clk 0:03:00.5]} 7... Na6 {[%clk 0:02:48.2]} 8. Be3 {[%clk 0:03:00.6]}
8... Nc5 {[%clk 0:02:48]} 9. Nd2 {[%clk 0:03:00.4]} 9... a5 {[%clk 0:02:48.3]}
10. g4 {[%clk 0:02:59.5]} 10... c6 {[%clk 0:02:47.1]} 11. h4 {[%clk 0:02:56.2]}
11... Bd7 {[%clk 0:02:47.4]} 12. h5 {[%clk 0:02:52.3]} 12... cxd5 {[%clk
0:02:46.9]} 13. cxd5 {[%clk 0:02:51.4]} 13... Rc8 {[%clk 0:02:46.9]} 14. a3
{[%clk 0:02:41.4]} 14... Ne8 {[%clk 0:02:17.6]} 15. g5 {[%clk 0:02:34.8]} 15...
f5 {[%clk 0:02:09.6]} 16. exf5 {[%clk 0:02:11]} 16... Bxf5 {[%clk 0:02:06.3]}
17. Bxc5 {[%clk 0:01:56]} 17... Rxc5 {[%clk 0:02:01.2]} 18. Nde4 {[%clk
0:01:53.1]} 18... Bxe4 {[%clk 0:01:53.8]} 19. Nxe4 {[%clk 0:01:52.9]} 19... Rf4
{[%clk 0:01:53.8]} 20. Nxc5 {[%clk 0:01:47.5]} 20... dxc5 {[%clk 0:01:53.3]} 21.
hxg6 {[%clk 0:01:41.9]} 21... hxg6 {[%clk 0:01:52.8]} 22. d6 {[%clk 0:01:10.7]}
22... Rd4 {[%clk 0:01:51.2]} 23. Qb3+ {[%clk 0:01:10.1]} 23... Kf8 {[%clk
0:01:51.1]} 24. Qf3+ {[%clk 0:01:02.6]} 24... Rf4 {[%clk 0:01:45.1]} 25. Qxb7
{[%clk 0:01:03]} 25... Nxd6 {[%clk 0:01:43.3]} 26. Qd5 {[%clk 0:00:57.5]} 26...
Qb6 {[%clk 0:01:26]} 27. O-O-O {[%clk 0:00:52.7]} 27... Rd4 {[%clk 0:01:02.8]}
28. Rxd4 {[%clk 0:00:49.5]} 28... cxd4 {[%clk 0:01:03]} 29. Bd1 {[%clk
0:00:37.8]} 29... Qc7+ {[%clk 0:00:31.3]} 30. Kb1 {[%clk 0:00:36.9]} 30... Nc4
{[%clk 0:00:31.5]} 31. Ka2 {[%clk 0:00:29.6]} 31... Nd2 {[%clk 0:00:30.8]} 32.
Ba4 {[%clk 0:00:24.7]} 32... Qc4+ {[%clk 0:00:22.9]} 33. Qxc4 {[%clk 0:00:23.5]}
33... Nxc4 {[%clk 0:00:23.5]} 34. Rc1 {[%clk 0:00:22.3]} 34... Nb6 {[%clk
0:00:23.2]} 35. Bc2 {[%clk 0:00:21.6]} 1-0

[Event "*** SCC Grand Prix: Titled Tuesday Blitz"]
[Site "Chess.com"]
[Date "2020.10.06"]
[Round "9"]
[White "valeriocarnicelli"]
[Black "TimofeevAr"]
[Result "0-1"]
[WhiteElo "2543"]
[BlackElo "2818"]
[TimeControl "180+1"]
[EndTime "11:46:04 PDT"]
[Termination "TimofeevAr won by resignation"]

1. e4 {[%clk 0:03:00.9]} 1... c5 {[%clk 0:02:59.6]} 2. Nf3 {[%clk 0:03:00.9]}
2... d6 {[%clk 0:03:00]} 3. d4 {[%clk 0:03:01.4]} 3... cxd4 {[%clk 0:03:00.3]}
4. Nxd4 {[%clk 0:03:02.3]} 4... Nc6 {[%clk 0:03:00.6]} 5. Nc3 {[%clk 0:03:02.4]}
5... e6 {[%clk 0:03:00.8]} 6. Be3 {[%clk 0:03:02]} 6... Nf6 {[%clk 0:03:00.2]}
7. f3 {[%clk 0:03:01.8]} 7... Be7 {[%clk 0:03:00.1]} 8. Qd2 {[%clk 0:03:02.1]}
8... O-O {[%clk 0:02:59.8]} 9. O-O-O {[%clk 0:03:02.3]} 9... d5 {[%clk 0:03:00]}
10. exd5 {[%clk 0:02:53.1]} 10... Nxd5 {[%clk 0:02:59.5]} 11. Nxd5 {[%clk
0:02:53.3]} 11... Qxd5 {[%clk 0:02:59.1]} 12. Nxc6 {[%clk 0:02:52.3]} 12... Qxc6
{[%clk 0:02:58.7]} 13. Kb1 {[%clk 0:02:50.2]} 13... e5 {[%clk 0:02:55.3]} 14.
Qd5 {[%clk 0:02:44.3]} 14... Qxd5 {[%clk 0:02:43.6]} 15. Rxd5 {[%clk 0:02:45.2]}
15... f6 {[%clk 0:02:44]} 16. Bc4 {[%clk 0:02:31.4]} 16... Be6 {[%clk
0:02:42.4]} 17. Rc5 {[%clk 0:02:31.3]} 17... Kf7 {[%clk 0:02:28.8]} 18. Bxe6+
{[%clk 0:02:25.4]} 18... Kxe6 {[%clk 0:02:28.8]} 19. Rc7 {[%clk 0:02:26]} 19...
b6 {[%clk 0:02:17]} 20. Rd1 {[%clk 0:02:24.5]} 20... Rfd8 {[%clk 0:02:16.5]} 21.
Rxd8 {[%clk 0:02:13.3]} 21... Rxd8 {[%clk 0:02:13.1]} 22. Kc1 {[%clk 0:02:13.5]}
22... Rd7 {[%clk 0:02:13]} 23. Rc8 {[%clk 0:02:09.7]} 23... f5 {[%clk
0:02:10.9]} 24. a4 {[%clk 0:02:00.7]} 24... g5 {[%clk 0:01:59.6]} 25. Rh8 {[%clk
0:01:47.5]} 25... Bf6 {[%clk 0:01:58.8]} 26. Re8+ {[%clk 0:01:46.9]} 26... Kf7
{[%clk 0:01:58.5]} 27. Rc8 {[%clk 0:01:45.7]} 27... h5 {[%clk 0:01:52.4]} 28. b4
{[%clk 0:01:38.7]} 28... g4 {[%clk 0:01:48.5]} 29. a5 {[%clk 0:01:36.7]} 29...
bxa5 {[%clk 0:01:44.9]} 30. bxa5 {[%clk 0:01:37.6]} 30... f4 {[%clk 0:01:31.1]}
31. Bf2 {[%clk 0:01:35.9]} 31... Be7 {[%clk 0:01:21.5]} 32. Bc5 {[%clk
0:01:30.3]} 32... e4 {[%clk 0:01:10.6]} 33. Bxe7 {[%clk 0:01:22.7]} 33... Kxe7
{[%clk 0:01:04.9]} 34. fxe4 {[%clk 0:01:19.1]} 34... Kd6 {[%clk 0:01:03.7]} 35.
Kd2 {[%clk 0:00:58.4]} 35... Ke5+ {[%clk 0:01:03.5]} 36. Ke2 {[%clk 0:00:58.8]}
36... Kxe4 {[%clk 0:01:03.9]} 37. Rc4+ {[%clk 0:00:49.4]} 37... Rd4 {[%clk
0:00:59.5]} 38. Rxd4+ {[%clk 0:00:20.2]} 38... Kxd4 {[%clk 0:00:59.2]} 39. a6
{[%clk 0:00:16.3]} 39... Kc4 {[%clk 0:00:58.4]} 40. h3 {[%clk 0:00:10.7]} 40...
Kb5 {[%clk 0:00:57.6]} 41. hxg4 {[%clk 0:00:08]} 41... hxg4 {[%clk 0:00:57.2]}
42. Kd3 {[%clk 0:00:08.9]} 42... Kxa6 {[%clk 0:00:55.8]} 43. Ke4 {[%clk
0:00:09.2]} 43... Kb5 {[%clk 0:00:50.4]} 44. Kxf4 {[%clk 0:00:09.5]} 44... a5
{[%clk 0:00:50.8]} 0-1

[Event "*** SCC Grand Prix: Titled Tuesday Blitz"]
[Site "Chess.com"]
[Date "2020.10.06"]
[Round "9"]
[White "PawnEatingZombie"]
[Black "Vadim_Biliy"]
[Result "0-1"]
[WhiteElo "2184"]
[BlackElo "2308"]
[TimeControl "180+1"]
[EndTime "11:46:07 PDT"]
[Termination "Vadim_Biliy won on time"]

1. d4 {[%clk 0:03:00.9]} 1... d5 {[%clk 0:02:59.2]} 2. c4 {[%clk 0:03:00.5]}
2... e6 {[%clk 0:02:59.7]} 3. Nc3 {[%clk 0:02:59.9]} 3... Nf6 {[%clk 0:03:00.2]}
4. cxd5 {[%clk 0:02:59.8]} 4... Nxd5 {[%clk 0:02:58.7]} 5. e4 {[%clk 0:02:58.6]}
5... Nxc3 {[%clk 0:02:58.8]} 6. bxc3 {[%clk 0:02:59.4]} 6... c5 {[%clk
0:02:59.2]} 7. Rb1 {[%clk 0:02:57.2]} 7... cxd4 {[%clk 0:02:58.6]} 8. cxd4
{[%clk 0:02:57.2]} 8... Nc6 {[%clk 0:02:58.3]} 9. Nf3 {[%clk 0:02:51.3]} 9...
Bb4+ {[%clk 0:02:57.5]} 10. Rxb4 {[%clk 0:02:40]} 10... Nxb4 {[%clk 0:02:54.6]}
11. Qa4+ {[%clk 0:02:40.3]} 11... Nc6 {[%clk 0:02:54.3]} 12. d5 {[%clk
0:02:40.8]} 12... exd5 {[%clk 0:02:51.8]} 13. exd5 {[%clk 0:02:29.7]} 13... Qxd5
{[%clk 0:02:49.7]} 14. Bb5 {[%clk 0:02:27.7]} 14... Bd7 {[%clk 0:02:41.2]} 15.
O-O {[%clk 0:02:23.6]} 15... O-O {[%clk 0:02:39.9]} 16. Rd1 {[%clk 0:02:20.6]}
16... Qf5 {[%clk 0:02:32]} 17. Bd3 {[%clk 0:01:50.4]} 17... Qg4 {[%clk
0:02:29.5]} 18. Qc2 {[%clk 0:01:34.4]} 18... h6 {[%clk 0:01:49.6]} 19. h3 {[%clk
0:01:28.5]} 19... Qe6 {[%clk 0:01:37.7]} 20. Bc4 {[%clk 0:01:14.5]} 20... Qe7
{[%clk 0:01:36.7]} 21. Qd3 {[%clk 0:01:00.8]} 21... Rad8 {[%clk 0:01:32.3]} 22.
Ba3 {[%clk 0:00:58.6]} 22... Nb4 {[%clk 0:01:23.8]} 23. Qb3 {[%clk 0:00:48.5]}
23... a5 {[%clk 0:01:19.8]} 24. Bb2 {[%clk 0:00:24.4]} 24... b5 {[%clk
0:01:15.2]} 25. Qc3 {[%clk 0:00:23.6]} 25... Qf6 {[%clk 0:00:43.6]} 26. Qxf6
{[%clk 0:00:11.7]} 26... gxf6 {[%clk 0:00:43]} 27. Bxf6 {[%clk 0:00:01.7]} 27...
bxc4 {[%clk 0:00:39.8]} 28. Bxd8 {[%clk 0:00:01.8]} 28... Rxd8 {[%clk
0:00:39.6]} 29. Ne5 {[%clk 0:00:02.4]} 29... Nd3 {[%clk 0:00:21.6]} 30. Nxd3
{[%clk 0:00:01.1]} 30... cxd3 {[%clk 0:00:20.4]} 31. Rxd3 {[%clk 0:00:01.5]}
31... Kf8 {[%clk 0:00:20.5]} 32. Kf1 {[%clk 0:00:01.1]} 32... Ke7 {[%clk
0:00:20.4]} 0-1